[Event "XII Paracin Festival 2019"]
[Site "Paracin"]
[Date "2019.07.11"]
[Round "8.17"]
[White "McPhillips, Joseph"]
[Black "Audi Ameya"]
[Result "1-0"]
[ECO "B40"]
[WhiteElo "2412"]
[BlackElo "2328"]
[Annotator "NA"]
[PlyCount "83"]
[EventDate "2019.07.05"]
[EventType "swiss"]
[EventCountry "SRB"]
[SourceTitle "playchess.com"]
[Source "ChessBase"]
[SourceQuality "1"]
[TimeControl "5400+30"]

1. e4 {[%emt 0:02:33]} c5 {[%emt 0:00:00]} 2. Nf3 {[%emt 0:00:06]} e6 {[%emt 0:00:00]} 3. c3 {[%emt 0:00:12]} Nf6 {[%emt 0:04:59]} 4. Bd3 {[%emt 0:00:07]} d5 {[%emt 0:05:44]} 5. e5 {[%emt 0:00:17]} Nfd7 {[%emt 0:00:26]} 6. Bc2 {[%emt 0:00:04]} c4 {[%emt 0:03:10]} 7. O-O {[%emt 0:00:10]} Nc6 {[%emt 0:00:39]} 8. Re1 {[%emt 0:00:03]} g5 {[%emt 0:09:21]} 9. d4 {[%emt 0:00:09]} cxd3 {[%emt 0:00:05]} 10. Ba4 {[%emt 0:00:05]} h6 {[%emt 0:03:04]} 11. Nd4 {[%emt 0:07:05]} Bg7 {[%emt 0:07:00]} 12. Nxc6 {[%emt 0:04:37]} bxc6 {[%emt 0:02:07]} 13. Bxc6 {[%emt 0:00:05]} Rb8 {[%emt 0:00:26]} 14. Qxd3 {[%emt 0:00:13]} O-O {[%emt 0:02:31]} 15. Bxd7 {[%emt 0:05:50]} Bxd7 {[%emt 0:00:02]} 16. Nd2 {[%emt 0:00:17]} f6 {[%emt 0:03:06]} 17. exf6 {[%emt 0:03:38]} Qxf6 {[%emt 0:10:08]} 18. Qg3 {[%emt 0:01:28]} g4 {[%emt 0:02:58]} 19. Nb3 {[%emt 0:03:07]} e5 {[%emt 0:17:36]} 20. Be3 {[%emt 0:02:59]} a5 {[%emt 0:06:38]} 21. Rad1 {[%emt 0:03:00]} Be6 {[%emt 0:00:14]} 22. Bc5 {[%emt 0:01:13]} Rfd8 {[%emt 0:06:02]} 23. Nxa5 {[%emt 0:00:37]} Rxb2 {[%emt 0:01:29]} 24. Nc6 {[%emt 0:10:36]} Re8 {[%emt 0:00:35]} 25. Rxe5 {[%emt 0:05:10]} Rxa2 {[%emt 0:03:31]} 26. Bd4 {[%emt 0:01:05]} Qf7 {[%emt 0:00:49]} 27. Re3 {[%emt 0:02:54]} Rc8 {[%emt 0:00:07]} 28. Bxg7 {[%emt 0:00:26]} Rxc6 {[%emt 0:01:31]} 29. Bxh6 d4 30. cxd4 {[%emt 0:07:02]} Bc8 {[%emt 0:02:56]} 31. Rde1 {[%emt 0:04:22]} Bd7 {[%emt 0:01:44]} 32. Rf3 {[%emt 0:05:19]} Re6 {[%emt 0:02:36]} 33. Qxg4+ {[%emt 0:05:03]} Kh8 {[%emt 0:00:22]} 34. Be3 {[%emt 0:00:53]} Qg7 {[%emt 0:01:41]} 35. Qh4+ {[%emt 0:00:53]} Kg8 {[%emt 0:00:02]} 36. Rg3 {[%emt 0:00:38]} Rg6 {[%emt 0:00:03]} 37. Qd8+ {[%emt 0:03:21]} Kh7 {[%emt 0:00:01]} 38. Qh4+ {[%emt 0:00:11]} Kg8 {[%emt 0:00:04]} 39. Rxg6 {[%emt 0:00:10]} Qxg6 {[%emt 0:00:03]} 40. Qd8+ {[%emt 0:00:11]} Qe8 {[%emt 0:00:52]} 41. Qg5+ {[%emt 0:00:04]} Kh7 {[%emt 0:00:04]} 42. Bd2 {[%emt 0:01:03]} 1-0

[Event "XII Paracin Festival 2019"]
[Site "Paracin"]
[Date "2019.07.11"]
[Round "8.18"]
[White "Nandhidhaa, P V"]
[Black "Lee, Jun Hyeok"]
[Result "1-0"]
[ECO "B30"]
[WhiteElo "2259"]
[BlackElo "2383"]
[Annotator "NA"]
[PlyCount "89"]
[EventDate "2019.07.05"]
[EventType "swiss"]
[EventCountry "SRB"]
[SourceTitle "playchess.com"]
[Source "ChessBase"]
[SourceQuality "1"]
[TimeControl "5400+30"]

1. e4 c5 2. Nf3 Nc6 3. Bb5 d6 4. Bxc6+ bxc6 5. O-O e5 6. d3 Be7 7. Nbd2 f5 8. exf5 Bxf5 9. Ne4 Nf6 10. Ng3 Bd7 11. Nh4 g6 12. Nf3 h6 13. c3 g5 14. Qe2 g4 15. Nh4 Nd5 16. Nhf5 Bxf5 17. Nxf5 Qd7 18. Qxg4 h5 19. Qe4 Kd8 20. Nxe7 Nxe7 21. d4 cxd4 22. cxd4 Qf5 23. Re1 Rf8 24. Qxf5 Rxf5 25. dxe5 dxe5 26. Bd2 Kd7 27. Rac1 Nd5 28. Rc4 Rb8 29. b3 Rb7 30. Rce4 Kd6 31. Bc1 Rb5 32. Rc4 Nb6 33. Ba3+ c5 34. Rc2 Ra5 35. Bb2 Rb5 36. Rd2+ Ke6 37. f4 c4 38. Bxe5 cxb3 39. axb3 Rxb3 40. Rd6+ Kf7 41. Rc1 Rb4 42. Rc7+ Ke8 43. Rxa7 Nc4 44. Re6+ Kd8 45. Bf6+ 1-0

[Event "XII Paracin Festival 2019"]
[Site "Paracin"]
[Date "2019.07.11"]
[Round "8.19"]
[White "Koksal, Ege"]
[Black "Raahul V S"]
[Result "1-0"]
[ECO "D07"]
[WhiteElo "2368"]
[BlackElo "2251"]
[Annotator "NA"]
[PlyCount "53"]
[EventDate "2019.07.05"]
[EventType "swiss"]
[EventCountry "SRB"]
[SourceTitle "playchess.com"]
[Source "ChessBase"]
[SourceQuality "1"]
[TimeControl "5400+30"]

1. d4 {[%emt 0:01:32]} d5 {[%emt 0:00:00]} 2. c4 {[%emt 0:01:10]} Nc6 {[%emt 0:00:01]} 3. Nf3 {[%emt 0:01:25]} Bg4 {[%emt 0:00:10]} 4. Nc3 {[%emt 0:04:16]} dxc4 {[%emt 0:02:16]} 5. d5 {[%emt 0:00:00]} Bxf3 {[%emt 0:00:33]} 6. exf3 {[%emt 0:00:01]} Ne5 {[%emt 0:00:17]} 7. Qd4 {[%emt 0:00:01]} Nd3+ {[%emt 0:02:35]} 8. Bxd3 {[%emt 0:00:03]} cxd3 {[%emt 0:00:02]} 9. O-O {[%emt 0:01:31]} Nf6 {[%emt 0:04:44]} 10. Bg5 {[%emt 0:00:38]} e6 {[%emt 0:01:03]} 11. Bxf6 {[%emt 0:15:11]} gxf6 {[%emt 0:00:39]} 12. Qe4 {[%emt 0:00:21]} Bd6 {[%emt 0:04:56]} 13. dxe6 {[%emt 0:01:00]} fxe6 {[%emt 0:00:02]} 14. Qxe6+ {[%emt 0:01:37]} Qe7 {[%emt 0:00:01]} 15. Qf5 {[%emt 0:03:33]} d2 {[%emt 0:07:22]} 16. Rad1 {[%emt 0:02:53]} Rd8 {[%emt 0:00:17]} 17. f4 {[%emt 0:04:06]} Qd7 {[%emt 0:08:52]} 18. Qh5+ {[%emt 0:01:47]} Qf7 {[%emt 0:00:29]} 19. Qe2+ {[%emt 0:00:02]} Kd7 {[%emt 0:01:44]} 20. Qxd2 {[%emt 0:01:38]} Kc8 {[%emt 0:00:07]} 21. Qe3 {[%emt 0:01:54]} a6 {[%emt 0:01:22]} 22. Ne4 {[%emt 0:06:57]} Qxa2 {[%emt 0:00:52]} 23. Qa7 {[%emt 0:04:05]} Kd7 {[%emt 0:06:27]} 24. Nxd6 {[%emt 0:02:46]} cxd6 {[%emt 0:00:23]} 25. Qxb7+ {[%emt 0:00:04]} Ke6 {[%emt 0:00:01]} 26. Rfe1+ {[%emt 0:00:08]} Kf5 {[%emt 0:00:01]} 27. Qe4+ {[%emt 0:00:31]} 1-0

[Event "XII Paracin Festival 2019"]
[Site "Paracin"]
[Date "2019.07.11"]
[Round "8.20"]
[White "Jocev, Milan"]
[Black "Savic, Miodrag R"]
[Result "0-1"]
[ECO "D38"]
[WhiteElo "2297"]
[BlackElo "2503"]
[Annotator "ChessBase"]
[PlyCount "108"]
[EventDate "2019.07.05"]
[EventType "swiss"]
[EventCountry "SRB"]
[SourceTitle "playchess.com"]
[Source "ChessBase"]
[SourceQuality "1"]
[TimeControl "5400+30"]

1. Nf3 {[%emt 0:00:00]} Nf6 {[%emt 0:00:00]} 2. c4 {[%emt 0:00:00]} e6 {[%emt 0:00:07]} 3. Nc3 {[%emt 0:00:13]} d5 {[%emt 0:02:22]} 4. d4 {[%emt 0:00:33]} Bb4 {[%emt 0:00:10]} 5. Bg5 {[%emt 0:00:49]} O-O {[%emt 0:01:38]} 6. e3 {[%emt 0:01:03]} Nbd7 {[%emt 0:00:54]} 7. Rc1 {[%emt 0:01:00]} h6 {[%emt 0:00:29]} 8. Bh4 {[%emt 0:00:48]} dxc4 {[%emt 0:08:42]} 9. Bxc4 {[%emt 0:00:29]} c5 {[%emt 0:03:40]} 10. O-O {[%emt 0:02:46]} cxd4 {[%emt 0:00:42]} 11. Qxd4 {[%emt 0:03:27]} Nb6 {[%emt 0:01:08]} 12. Bb3 {[%emt 0:02:30]} Qxd4 {[%emt 0:01:03]} 13. Nxd4 {[%emt 0:00:17]} Bd7 {[%emt 0:06:00]} 14. a3 {[%emt 0:06:34]} Be7 {[%emt 0:19:26]} 15. e4 {[%emt 0:04:26]} Bc5 {[%emt 0:04:10]} 16. Bxf6 {[%emt 0:04:16]} gxf6 {[%emt 0:00:02]} 17. Rfd1 {[%emt 0:00:16]} Rac8 {[%emt 0:03:56]} 18. Kf1 {[%emt 0:03:42]} Rfd8 {[%emt 0:00:17]} 19. Nc2 {[%emt 0:05:28]} Kf8 {[%emt 0:03:40]} 20. Ke2 {[%emt 0:01:20]} Ke7 {[%emt 0:00:01]} 21. Rd3 Bd6 {[%emt 0:03:43]} 22. Rcd1 {[%emt 0:06:16]} Be5 {[%emt 0:00:11]} 23. Ne3 {[%emt 0:06:42]} Rc5 {[%emt 0:07:32]} 24. Ng4 {[%emt 0:04:28]} Bxc3 {[%emt 0:02:39]} 25. Rxc3 {[%emt 0:00:10]} Rxc3 {[%emt 0:02:38]} 26. bxc3 {[%emt 0:00:05]} h5 {[%emt 0:02:44]} 27. Ne3 {[%emt 0:00:15]} Rc8 {[%emt 0:01:07]} 28. Kd2 {[%emt 0:01:43]} h4 {[%emt 0:00:01]} 29. h3 {[%emt 0:01:13]} Rc5 {[%emt 0:01:28]} 30. f3 {[%emt 0:03:34]} Ra5 {[%emt 0:00:54]} 31. Ra1 {[%emt 0:00:35]} Bc6 {[%emt 0:02:58]} 32. Bc2 {[%emt 0:02:37]} Kd6 {[%emt 0:02:22]} 33. f4 {[%emt 0:02:18]} Ke7 {[%emt 0:00:16]} 34. Bd3 {[%emt 0:04:13]} Na4 {[%emt 0:01:05]} 35. Rb1 {[%emt 0:04:13]} Nc5 {[%emt 0:00:33]} 36. Nc4 {[%emt 0:01:11]} Ra4 {[%emt 0:01:29]} 37. Rb4 {[%emt 0:01:47]} Rxb4 {[%emt 0:01:16]} 38. cxb4 {[%emt 0:01:01]} Nxe4+ {[%emt 0:00:14]} 39. Bxe4 {[%emt 0:07:46]} Bxe4 {[%emt 0:00:02]} 40. Ne3 {[%emt 0:00:06]} e5 {[%emt 0:01:59]} 41. f5 {[%emt 0:00:32]} Kf8 {[%emt 0:00:22]} 42. Ke2 {[%emt 0:01:17]} Kg7 {[%emt 0:00:07]} 43. Kf2 {[%emt 0:00:09]} Kh6 {[%emt 0:00:10]} 44. g3 {[%emt 0:01:50]} Kg5 {[%emt 0:00:48]} 45. Nc4 {[%emt 0:01:19]} Bxf5 {[%emt 0:02:01]} 46. Nd6 {[%emt 0:00:13]} Bxh3 {[%emt 0:02:46]} 47. Nxb7 {[%emt 0:00:44]} hxg3+ {[%emt 0:01:42]} 48. Kxg3 {[%emt 0:00:05]} Be6 {[%emt 0:00:16]} 49. Nd6 {[%emt 0:01:02]} f5 {[%emt 0:00:18]} 50. a4 {[%emt 0:01:24]} e4 {[%emt 0:01:58]} 51. b5 {[%emt 0:01:37]} f4+ {[%emt 0:00:02]} 52. Kf2 {[%emt 0:00:04]} e3+ {[%emt 0:00:53]} 53. Ke2 {[%emt 0:00:18]} Kf6 {[%emt 0:01:39]} 54. a5 {[%emt 0:00:38]} Ke5 {[%emt 0:00:19]} 0-1

[Event "XII Paracin Festival 2019"]
[Site "Paracin"]
[Date "2019.07.11"]
[Round "8.21"]
[White "Cabarkapa, Novak"]
[Black "Peng, Shunkai"]
[Result "1/2-1/2"]
[ECO "A45"]
[WhiteElo "2444"]
[BlackElo "2300"]
[Annotator "NA"]
[PlyCount "41"]
[EventDate "2019.07.05"]
[EventType "swiss"]
[EventCountry "SRB"]
[SourceTitle "playchess.com"]
[Source "ChessBase"]
[SourceQuality "1"]
[TimeControl "5400+30"]

1. d4 {[%emt 0:00:00]} Nf6 {[%emt 0:02:14]} 2. Nc3 {[%emt 0:00:00]} d5 {[%emt 0:00:58]} 3. Bf4 {[%emt 0:00:00]} e6 {[%emt 0:02:35]} 4. e3 {[%emt 0:00:27]} Bd6 {[%emt 0:02:36]} 5. Nf3 {[%emt 0:00:29]} Bxf4 {[%emt 0:01:12]} 6. exf4 {[%emt 0:00:06]} O-O {[%emt 0:00:16]} 7. Ne5 {[%emt 0:01:23]} b6 {[%emt 0:06:33]} 8. Qf3 {[%emt 0:01:14]} c5 {[%emt 0:04:30]} 9. O-O-O {[%emt 0:00:37]} Nfd7 {[%emt 0:08:18]} 10. Qg3 {[%emt 0:14:10]} cxd4 {[%emt 0:18:12]} 11. Nb5 {[%emt 0:03:18]} Ba6 {[%emt 0:11:29]} 12. Nxd4 {[%emt 0:13:31]} Bxf1 {[%emt 0:00:37]} 13. Rhxf1 {[%emt 0:00:54]} Nxe5 {[%emt 0:01:29]} 14. fxe5 {[%emt 0:00:14]} Qd7 {[%emt 0:00:12]} 15. c3 {[%emt 0:23:11]} Nc6 {[%emt 0:01:27]} 16. Nxc6 {[%emt 0:00:14]} Qxc6 {[%emt 0:00:20]} 17. Rd4 {[%emt 0:00:10]} Rfc8 {[%emt 0:07:34]} 18. h4 {[%emt 0:01:56]} Qb5 {[%emt 0:04:41]} 19. Rfd1 {[%emt 0:01:50]} Rc4 {[%emt 0:00:21]} 20. h5 {[%emt 0:00:32]} h6 {[%emt 0:01:37]} 21. Qd3 {[%emt 0:06:02]} 1/2-1/2

[Event "XII Paracin Festival 2019"]
[Site "Paracin"]
[Date "2019.07.11"]
[Round "8.22"]
[White "Mitev, Valentin"]
[Black "Froewis, Georg"]
[Result "0-1"]
[ECO "D47"]
[WhiteElo "2296"]
[BlackElo "2434"]
[Annotator "NA"]
[PlyCount "146"]
[EventDate "2019.07.05"]
[EventType "swiss"]
[EventCountry "SRB"]
[SourceTitle "playchess.com"]
[Source "ChessBase"]
[SourceQuality "1"]
[TimeControl "5400+30"]

1. d4 {[%emt 0:00:00]} d5 {[%emt 0:00:00]} 2. c4 {[%emt 0:00:00]} e6 {[%emt 0:00:00]} 3. Nc3 {[%emt 0:00:08]} c6 {[%emt 0:00:00]} 4. e3 {[%emt 0:00:40]} Nf6 {[%emt 0:00:00]} 5. Nf3 {[%emt 0:00:09]} Nbd7 {[%emt 0:00:00]} 6. Bd3 {[%emt 0:00:27]} dxc4 {[%emt 0:00:00]} 7. Bxc4 {[%emt 0:00:12]} b5 {[%emt 0:00:00]} 8. Bd3 {[%emt 0:00:18]} Bd6 {[%emt 0:00:00]} 9. O-O {[%emt 0:01:02]} O-O {[%emt 0:00:00]} 10. Qc2 {[%emt 0:02:17]} Bb7 {[%emt 0:00:09]} 11. Ne4 {[%emt 0:01:13]} Nxe4 {[%emt 0:13:07]} 12. Bxe4 {[%emt 0:00:02]} Nf6 {[%emt 0:00:19]} 13. Bd3 {[%emt 0:06:49]} c5 {[%emt 0:01:10]} 14. dxc5 {[%emt 0:03:04]} Rc8 {[%emt 0:01:51]} 15. e4 {[%emt 0:04:08]} Rxc5 {[%emt 0:10:13]} 16. Qe2 {[%emt 0:00:05]} Qa8 {[%emt 0:00:04]} 17. Re1 {[%emt 0:03:45]} e5 {[%emt 0:01:09]} 18. Be3 {[%emt 0:01:17]} Rcc8 {[%emt 0:00:20]} 19. Bg5 {[%emt 0:00:11]} Nd7 {[%emt 0:06:50]} 20. Nh4 {[%emt 0:09:15]} Bb4 {[%emt 0:02:17]} 21. Qg4 {[%emt 0:03:30]} f6 {[%emt 0:00:28]} 22. Bh6 {[%emt 0:03:20]} Rf7 {[%emt 0:00:17]} 23. Nf5 {[%emt 0:03:19]} g6 {[%emt 0:00:51]} 24. Re3 {[%emt 0:14:25]} Rc7 {[%emt 0:06:10]} 25. a3 {[%emt 0:08:38]} Bc5 {[%emt 0:03:36]} 26. Rh3 {[%emt 0:03:51]} Nf8 {[%emt 0:04:06]} 27. b4 {[%emt 0:02:20]} Bd4 {[%emt 0:00:50]} 28. Re1 {[%emt 0:07:06]} Qc8 {[%emt 0:06:30]} 29. Bxf8 {[%emt 0:01:31]} Rxf8 {[%emt 0:00:45]} 30. Bxb5 {[%emt 0:02:18]} Bxe4 {[%emt 0:05:27]} 31. Nh6+ {[%emt 0:01:22]} Kg7 {[%emt 0:01:07]} 32. Qxe4 {[%emt 0:00:41]} f5 {[%emt 0:00:34]} 33. Qh4 {[%emt 0:06:24]} Kh8 {[%emt 0:01:25]} 34. Rd3 {[%emt 0:07:14]} Qd8 {[%emt 0:03:24]} 35. Qxd8 {[%emt 0:05:02]} Rxd8 {[%emt 0:00:01]} 36. Bc4 {[%emt 0:00:01]} Kg7 {[%emt 0:02:43]} 37. Nf7 {[%emt 0:00:08]} Rdc8 {[%emt 0:01:05]} 38. Nd6 {[%emt 0:00:48]} Rxc4 {[%emt 0:00:15]} 39. Nxc8 {[%emt 0:00:47]} Rxc8 {[%emt 0:00:01]} 40. Red1 {[%emt 0:00:49]} Rc2 {[%emt 0:00:14]} 41. R3d2 {[%emt 0:00:03]} Rc3 {[%emt 0:00:06]} 42. Ra2 {[%emt 0:00:13]} Kf6 {[%emt 0:00:16]} 43. Kf1 {[%emt 0:00:17]} Ke6 {[%emt 0:00:10]} 44. Ke2 {[%emt 0:00:36]} g5 {[%emt 0:00:49]} 45. Rd3 {[%emt 0:00:37]} Rc1 {[%emt 0:00:35]} 46. Rd1 {[%emt 0:00:05]} Rc3 {[%emt 0:00:06]} 47. Rd3 {[%emt 0:00:29]} Rc1 {[%emt 0:00:10]} 48. Rh3 {[%emt 0:02:10]} Bc3 {[%emt 0:00:05]} 49. Rh6+ {[%emt 0:00:48]} Kd5 {[%emt 0:00:03]} 50. f3 {[%emt 0:00:16]} Kc4 {[%emt 0:01:23]} 51. Ra6 {[%emt 0:00:33]} Kb3 {[%emt 0:00:38]} 52. Rd2 {[%emt 0:00:03]} Bxd2 {[%emt 0:00:43]} 53. Kxd2 {[%emt 0:00:01]} Rc2+ {[%emt 0:00:38]} 54. Ke3 {[%emt 0:00:20]} Rxg2 {[%emt 0:08:58]} 55. Rxa7 {[%emt 0:00:17]} h5 {[%emt 0:11:37]} 56. b5 {[%emt 0:00:07]} Kc4 {[%emt 0:00:06]} 57. a4 {[%emt 0:00:19]} f4+ {[%emt 0:02:07]} 58. Ke4 {[%emt 0:00:01]} Re2+ {[%emt 0:00:10]} 59. Kf5 {[%emt 0:00:01]} g4 {[%emt 0:00:07]} 60. Rc7+ {[%emt 0:01:44]} Kd5 {[%emt 0:00:03]} 61. Rd7+ {[%emt 0:02:10]} Kc5 {[%emt 0:00:01]} 62. Rc7+ {[%emt 0:00:14]} Kd6 {[%emt 0:01:10]} 63. b6 {[%emt 0:00:47]} gxf3 {[%emt 0:00:12]} 64. Rc1 {[%emt 0:00:39]} f2 {[%emt 0:00:02]} 65. a5 {[%emt 0:00:31]} Rb2 {[%emt 0:00:46]} 66. Rd1+ {[%emt 0:00:13]} Kc6 {[%emt 0:00:01]} 67. Rc1+ Kb7 {[%emt 0:00:09]} 68. Rc7+ {[%emt 0:01:14]} Ka6 {[%emt 0:00:34]} 69. Rc1 {[%emt 0:00:25]} Re2 {[%emt 0:00:26]} 70. Rf1 {[%emt 0:00:09]} e4 {[%emt 0:00:21]} 71. Kxf4 {[%emt 0:00:13]} e3 {[%emt 0:00:11]} 72. Kf3 {[%emt 0:00:09]} Re1 {[%emt 0:00:06]} 73. Kg2 {[%emt 0:00:04]} Kb7 {[%emt 0:00:16]} 0-1

[Event "XII Paracin Festival 2019"]
[Site "Paracin"]
[Date "2019.07.11"]
[Round "8.23"]
[White "Gan-Od, Sereenen"]
[Black "Soysal, Serkan"]
[Result "1/2-1/2"]
[ECO "A16"]
[WhiteElo "2294"]
[BlackElo "2431"]
[Annotator "NA"]
[PlyCount "144"]
[EventDate "2019.07.05"]
[EventType "swiss"]
[EventCountry "SRB"]
[SourceTitle "playchess.com"]
[Source "ChessBase"]
[SourceQuality "1"]
[TimeControl "5400+30"]

1. c4 {[%emt 0:00:00]} Nf6 {[%emt 0:00:14]} 2. Nc3 {[%emt 0:00:00]} d5 {[%emt 0:00:02]} 3. cxd5 {[%emt 0:00:00]} Nxd5 {[%emt 0:00:02]} 4. Nf3 {[%emt 0:00:11]} g6 {[%emt 0:00:01]} 5. g3 {[%emt 0:00:14]} Bg7 {[%emt 0:00:47]} 6. Bg2 {[%emt 0:00:00]} O-O {[%emt 0:00:42]} 7. O-O {[%emt 0:02:05]} Nc6 {[%emt 0:04:45]} 8. Qa4 {[%emt 0:00:13]} Nb6 {[%emt 0:00:30]} 9. Qh4 {[%emt 0:00:30]} e5 {[%emt 0:00:16]} 10. Qxd8 {[%emt 0:00:29]} Rxd8 {[%emt 0:00:02]} 11. a4 {[%emt 0:00:28]} a5 {[%emt 0:12:24]} 12. Nb5 {[%emt 0:00:42]} Rd7 {[%emt 0:04:10]} 13. d3 {[%emt 0:03:47]} Nb4 {[%emt 0:05:59]} 14. Bd2 {[%emt 0:01:04]} c6 {[%emt 0:00:55]} 15. Nc3 {[%emt 0:01:17]} f5 {[%emt 0:01:41]} 16. Be3 {[%emt 0:00:52]} N6d5 {[%emt 0:02:28]} 17. Nxd5 {[%emt 0:00:21]} Nxd5 {[%emt 0:00:40]} 18. Bc5 {[%emt 0:00:56]} b6 {[%emt 0:03:51]} 19. Ba3 {[%emt 0:00:08]} Rd8 {[%emt 0:11:44]} 20. Rac1 {[%emt 0:02:57]} c5 {[%emt 0:00:12]} 21. Nd2 {[%emt 0:01:02]} Be6 {[%emt 0:01:03]} 22. Nc4 {[%emt 0:00:09]} Rab8 {[%emt 0:00:01]} 23. b3 {[%emt 0:00:29]} e4 {[%emt 0:04:50]} 24. dxe4 {[%emt 0:06:22]} Nc3 {[%emt 0:01:33]} 25. Rc2 Nxe4 {[%emt 0:02:45]} 26. Bc1 {[%emt 0:01:20]} Bxc4 {[%emt 0:03:29]} 27. bxc4 {[%emt 0:02:03]} Rd7 {[%emt 0:07:40]} 28. g4 {[%emt 0:07:49]} Rbd8 {[%emt 0:00:05]} 29. gxf5 {[%emt 0:00:18]} gxf5 {[%emt 0:00:02]} 30. Bh3 {[%emt 0:00:24]} Rf7 {[%emt 0:01:25]} 31. f3 {[%emt 0:01:07]} Nc3 {[%emt 0:03:33]} 32. e4 {[%emt 0:06:39]} Nxa4 {[%emt 0:08:23]} 33. Bxf5 {[%emt 0:00:26]} Rxf5 {[%emt 0:01:11]} 34. exf5 {[%emt 0:00:11]} Kf7 {[%emt 0:00:50]} 35. Kg2 {[%emt 0:02:16]} Rd3 {[%emt 0:04:48]} 36. Re1 {[%emt 0:01:10]} Kf6 {[%emt 0:02:21]} 37. Re6+ {[%emt 0:05:00]} Kxf5 {[%emt 0:00:08]} 38. Re7 {[%emt 0:00:05]} Bd4 {[%emt 0:01:14]} 39. Rxh7 {[%emt 0:01:04]} Rd1 {[%emt 0:01:32]} 40. Rh5+ {[%emt 0:00:14]} Kg6 {[%emt 0:00:25]} 41. Rd5 {[%emt 0:02:02]} Nc3 {[%emt 0:02:01]} 42. Rd6+ {[%emt 0:01:18]} Kf5 {[%emt 0:00:02]} 43. Bb2 {[%emt 0:01:44]} Rg1+ {[%emt 0:00:49]} 44. Kh3 {[%emt 0:00:03]} Rf1 {[%emt 0:01:21]} 45. Bxc3 {[%emt 0:01:17]} Rxf3+ {[%emt 0:00:03]} 46. Kg2 {[%emt 0:00:06]} Rxc3 {[%emt 0:00:04]} 47. Rxc3 {[%emt 0:00:07]} Bxc3 {[%emt 0:00:01]} 48. Kf3 {[%emt 0:00:57]} Be5 {[%emt 0:00:59]} 49. Rxb6 {[%emt 0:00:16]} Bxh2 {[%emt 0:00:05]} 50. Ra6 {[%emt 0:00:55]} Ke5 {[%emt 0:06:12]} 51. Ke3 {[%emt 0:00:17]} Bg1+ {[%emt 0:00:01]} 52. Kd3 {[%emt 0:00:05]} Bd4 {[%emt 0:00:10]} 53. Rxa5 {[%emt 0:00:03]} Kd6 {[%emt 0:00:15]} 54. Ke4 {[%emt 0:00:06]} Kc6 {[%emt 0:00:19]} 55. Ra6+ {[%emt 0:00:04]} Kb7 {[%emt 0:00:00]} 56. Rh6 {[%emt 0:00:07]} Bf2 {[%emt 0:00:12]} 57. Kd5 {[%emt 0:00:06]} Be3 {[%emt 0:00:06]} 58. Rc6 {[%emt 0:00:55]} Bf2 {[%emt 0:00:13]} 59. Kd6 {[%emt 0:00:04]} Be3 {[%emt 0:02:05]} 60. Kd7 {[%emt 0:00:08]} Bd4 {[%emt 0:00:04]} 61. Rg6 {[%emt 0:01:11]} Bc3 {[%emt 0:02:26]} 62. Kd6 {[%emt 0:01:17]} Bb4 {[%emt 0:00:26]} 63. Rg3 {[%emt 0:00:26]} Kb6 {[%emt 0:00:44]} 64. Rb3 {[%emt 0:02:05]} Kb7 {[%emt 0:01:09]} 65. Rb1 {[%emt 0:00:05]} Kb6 {[%emt 0:01:06]} 66. Rxb4+ {[%emt 0:02:48]} cxb4 {[%emt 0:00:25]} 67. c5+ {[%emt 0:00:05]} Ka7 {[%emt 0:01:58]} 68. c6 {[%emt 0:00:00]} b3 {[%emt 0:00:00]} 69. c7 b2 70. c8=Q {[%emt 0:00:39]} b1=Q {[%emt 0:00:05]} 71. Qc7+ {[%emt 0:02:12]} Qb7 {[%emt 0:00:09]} 72. Qxb7+ {[%emt 0:00:13]} Kxb7 1/2-1/2

[Event "XII Paracin Festival 2019"]
[Site "Paracin"]
[Date "2019.07.11"]
[Round "8.24"]
[White "Lajthajm, Borko"]
[Black "Martic, Zlatko"]
[Result "0-1"]
[ECO "B15"]
[WhiteElo "2424"]
[BlackElo "2283"]
[Annotator "NA"]
[PlyCount "64"]
[EventDate "2019.07.05"]
[EventType "swiss"]
[EventCountry "SRB"]
[SourceTitle "playchess.com"]
[Source "ChessBase"]
[SourceQuality "1"]
[TimeControl "5400+30"]

1. e4 {[%emt 0:00:00]} c6 {[%emt 0:03:02]} 2. d4 {[%emt 0:00:00]} d5 {[%emt 0:00:05]} 3. Nd2 {[%emt 0:00:00]} dxe4 {[%emt 0:00:14]} 4. Nxe4 {[%emt 0:00:00]} Nf6 {[%emt 0:00:37]} 5. Nxf6+ {[%emt 0:00:00]} exf6 {[%emt 0:00:06]} 6. Bc4 {[%emt 0:00:14]} Bd6 {[%emt 0:00:37]} 7. Ne2 {[%emt 0:00:15]} O-O {[%emt 0:00:48]} 8. Bf4 {[%emt 0:01:00]} Bxf4 {[%emt 0:00:18]} 9. Nxf4 {[%emt 0:00:07]} Re8+ {[%emt 0:00:24]} 10. Ne2 {[%emt 0:00:24]} Be6 {[%emt 0:00:31]} 11. Bd3 {[%emt 0:00:21]} Na6 {[%emt 0:02:05]} 12. O-O {[%emt 0:00:27]} Nb4 {[%emt 0:01:07]} 13. Re1 {[%emt 0:01:00]} Nxd3 {[%emt 0:04:00]} 14. Qxd3 {[%emt 0:00:07]} Qb6 {[%emt 0:00:59]} 15. a3 {[%emt 0:00:47]} Rad8 {[%emt 0:00:30]} 16. b4 {[%emt 0:00:30]} a5 {[%emt 0:01:10]} 17. c3 {[%emt 0:00:20]} axb4 {[%emt 0:05:07]} 18. axb4 {[%emt 0:00:05]} g6 {[%emt 0:03:51]} 19. Nf4 {[%emt 0:00:27]} Bd5 {[%emt 0:05:02]} 20. Qg3 {[%emt 0:00:26]} Ra8 {[%emt 0:24:47]} 21. Nh5 {[%emt 0:00:43]} Rxe1+ {[%emt 0:00:41]} 22. Rxe1 {[%emt 0:00:07]} Qd8 {[%emt 0:00:23]} 23. h4 {[%emt 0:00:22]} Kf8 {[%emt 0:01:21]} 24. Qf4 {[%emt 0:02:35]} gxh5 {[%emt 0:09:13]} 25. Qh6+ {[%emt 0:00:07]} Kg8 {[%emt 0:00:04]} 26. Re3 {[%emt 0:00:16]} Qd6 {[%emt 0:01:29]} 27. f4 {[%emt 0:05:53]} Kh8 {[%emt 0:01:24]} 28. Kh2 {[%emt 0:06:25]} Rg8 {[%emt 0:00:12]} 29. g3 {[%emt 0:00:04]} b5 {[%emt 0:00:37]} 30. Qxh5 {[%emt 0:00:10]} Qf8 {[%emt 0:01:06]} 31. f5 {[%emt 0:01:22]} Qa8 {[%emt 0:01:31]} 32. Qd1 {[%emt 0:00:57]} Re8 {[%emt 0:02:03]} 0-1